Cogmind - Beta 10.2 @@@ ROGUE MODE // 2021.10.30 @ 16:40:29 Player: Feeva Result: Destroyed by G-34 Mercenary with Small Laser Performance ------------- Evolutions (1) 500 Regions Visited (3) 600 Robots Destroyed (15) 75 Value Destroyed (420) 420 Prototype IDs (2) 40 Alien Tech Used (0) 0 Bonus (0) 0 TOTAL SCORE: 1635 Bonus ------- None Cogmind --------- Core Integrity 0/400 Matter 27/300 Energy 100/100 System Corruption 0% Temperature Cool (12) Movement Core (550) Ox10 Location -9/Materials Parts ------- > --- POWER (1) -------- (None) > --- PROPULSION (2) --- (None) > --- UTILITY (4) ------ Large Storage Unit Large Storage Unit Terrain Scan Processor Utility Shielding > --- WEAPON (2) ------- (None) > --- INVENTORY (16) --- Heat Sink Large Matter Pod (0) Seismic Analyzer Peak State ------------ > --- POWER ------------ Light Ion Engine > --- PROPULSION ------- Wheel Wheel > --- UTILITY ---------- Large Storage Unit Large Storage Unit Terrain Scan Processor Utility Shielding > --- WEAPON ----------- Slug Cannon Mining Laser > --- INVENTORY -------- Ion Engine Heat Sink Large Matter Pod Seismic Analyzer Small Laser [Rating: 13] Favorites ----------- Power Light Ion Engine Engine Light Ion Engine Propulsion Wheel Leg Aluminum Leg Wheel Wheel Utility Large Storage Unit Device Heat Sink Storage Large Storage Unit Processor Terrain Scan Processor Protection Utility Shielding Weapon EM Pulse Gun Energy Gun EM Pulse Gun Ballistic Cannon Slug Cannon Launcher Grenade Launcher Special Weapon Mining Laser Build | -11 -10 -10 -9 ------- Run | Scr Mat Min Mat Slots Evolved 2 | . . . 2 Power . | . . . . Propulsion . | . . . . Utility 2 | . . . 2 Weapon . | . . . . Parts Attached 27 | 9 9 4 5 Power 6 | 1 2 2 1 Engine 6 | 1 2 2 1 Core . | . . . . Reactor . | . . . . Propulsion 5 | 4 1 . . Treads . | . . . . Leg 2 | 2 . . . Wheel 3 | 2 1 . . Hover . | . . . . Flight . | . . . . Utility 7 | 1 4 . 2 Device 1 | 1 . . . Storage 4 | . 3 . 1 Processor 1 | . 1 . . Hackware . | . . . . Protection 1 | . . . 1 Artifact . | . . . . Weapon 9 | 3 2 2 2 Energy Gun 5 | 3 1 . 1 Energy Cannon . | . . . . Ballistic Gun . | . . . . Ballistic Cannon 2 | . . 1 1 Launcher 1 | . 1 . . Special Weapon 1 | . . 1 . Impact Weapon . | . . . . Slashing Weapon . | . . . . Piercing Weapon . | . . . . Special Melee Weapon . | . . . . Unidentified Prototypes . | . . . . Parts Lost 9 | . 1 1 7 Power 3 | . . 1 2 Propulsion 2 | . . . 2 Utility . | . . . . Weapon 4 | . 1 . 3 Highest Loss Streak 6 | . 1 1 6 Average Slot Usage (%) 96 | . 98 99 84 Engine 12 | . 14 13 6 Wheel 25 | . 28 28 17 Device 3 | . 11 . . Storage 15 | . 12 14 22 Processor 10 | . 2 14 11 Protection 2 | . . . 11 Energy Gun 5 | . 15 2 . Ballistic Cannon 7 | . . 11 8 Launcher 7 | . 12 7 . Special Weapon 4 | . . 6 7 Naked Turns . | . . . . Heaviest Build 46 | 8 26 31 46 Greatest Support 20 | 20 20 20 20 Greatest Overweight (x) 10 | . 1 1 10 Average Overweight (x) . | . . 1 2 Largest Inventory Capacity 16 | 4 10 10 16 Average Capacity 9 | 4 5 10 16 Most Carried 8 | 4 7 8 6 Average Carried 4 | 2 3 6 4 Final Capacity 16 | 4 10 10 16 Final Carried 7 | 3 6 7 3 Class Distribution -------------------- 100% | Mutant Dominant Class ---------------- Mutant | -10/Materials Mutant | -10/Mines Mutant | -9/Materials Resources | -11 -10 -10 -9 ----------- Run | Scr Mat Min Mat Matter Collected 544 | 217 168 107 52 Remotely . | . . . . Salvage Created 410 | 45 280 33 52 Parts 38 | 3 26 6 3 Haulers Intercepted . | . . . . Recyclers Shooed . | . . . . Parts Field Recycled . | . . . . Retrieved Matter . | . . . . Parts Self-Destructed . | . . . . Prevented . | . . . . Kills | -11 -10 -10 -9 ------- Run | Scr Mat Min Mat Combat Hostiles Destroyed 12 | 1 7 3 1 Guns 2 | 1 1 . . Cannons 2 | . . 1 1 AOE 8 | . 6 2 . Classes Destroyed 6 | 1 1 3 1 Builder 4 | . 4 . . Tunneler 1 | . . 1 . Grunt 8 | 1 7 . . Sentry 1 | . . . 1 Demolisher 1 | . . 1 . Assembled 2 | . . 2 . Best Kill Streak 8 | 1 8 1 1 Combat Bots Only 4 | 1 4 1 1 Max Kills in Single Turn 4 | 1 4 1 1 Gunslinging . | . . . . Exploded 1 | . 1 1 . Melee . | . . . . Uniques/NPCs Destroyed . | . . . . Combat | -11 -10 -10 -9 -------- Run | Scr Mat Min Mat Damage Taken 1322 | 46 146 226 904 Core 514 | . 12 93 409 Absorbed by Shields . | . . . . Core Remaining (%) 79 | 100 . 58 . Volleys Fired 50 | 3 15 19 13 Largest 2 | 2 2 2 2 Hottest 148 | 80 70 148 148 Shots Fired 77 | 6 28 28 15 Gun 22 | 6 15 . 1 Cannon 32 | . . 19 13 Launcher 20 | . 13 7 . Special 3 | . . 2 1 Kinetic 32 | . . 19 13 Thermal 4 | . . 2 2 Explosive 20 | . 13 7 . Electromagnetic 21 | 6 15 . . Robot Hit Streak 6 | 1 6 1 1 Robot Miss Streak 6 | 2 2 5 6 Penetration Max . | . . . . Secondary Targets . | . . . . Shots Hit Robots 29 | 2 16 9 2 Core Hits 28 | 2 18 6 2 Critical Hits . | . . . . Critical Kills . | . . . . Critical Parts Destroyed . | . . . . Melee Attacks . | . . . . Impact . | . . . . Slashing . | . . . . Piercing . | . . . . Sneak Attacks . | . . . . Combat Hostiles . | . . . . Follow-up Attacks . | . . . . Damage Inflicted 1130 | 40 631 343 116 Guns 156 | 40 105 . 11 Cannons 197 | . . 116 81 Explosions 729 | . 526 203 . Melee . | . . . . Ramming . | . . . . Kinetic 197 | . . 116 81 Thermal 59 | . . 24 35 Explosive 729 | . 526 203 . Electromagnetic 145 | 40 105 . . Impact . | . . . . Slashing . | . . . . Piercing . | . . . . Highest Corruption . | . . . . Average Corruption . | . . . . Corruption Purged . | . . . . Overload Shots . | . . . . Overflow Damage 58 | . 42 15 1 Projectiles 16 | . . 15 1 Explosions 42 | . 42 . . Melee . | . . . . Knockbacks 3 | . . 1 2 Impact . | . . . . Kinetic 2 | . . 1 1 Secondary 1 | . . . 1 Self-Inflicted Damage 90 | . 76 14 . Shots 6 | . 5 1 . Rammed . | . . . . Targets Rammed . | . . . . Kicked . | . . . . Crushed . | . . . . Highest Temperature 56 | 48 9 56 42 Average Temperature 19 | 24 5 23 10 Received Heat Transfer 536 | 24 39 20 453 Siege Activations . | . . . . Robots Corrupted . | . . . . Combat Hostiles . | . . . . Parts Fried . | . . . . Impact Corruptions . | . . . . Robots Melted . | . . . . Combat Hostiles . | . . . . Parts Melted . | . . . . Heat Transferred 125 | . . 50 75 Parts Sabotaged . | . . . . Parts Stolen . | . . . . Parts Stripped . | . . . . Power Chain Reactions . | . . . . Missiles Intercepted . | . . . . Alert | -11 -10 -10 -9 ------- Run | Scr Mat Min Mat Peak Influence 276 | 20 276 152 144 Initial 107 | . 13 107 59 Average 105 | 4 114 138 93 Maximum Alert Level 1 | . 1 . . Low Security (%) 90 | 100 63 100 100 Level 1 9 | . 36 . . Level 2 . | . . . . Level 3 . | . . . . Level 4 . | . . . . Level 5 . | . . . . High Security . | . . . . Max Security . | . . . . Squads Dispatched 5 | . 3 . 2 Investigation 5 | . 3 . 2 Extermination . | . . . . Reinforcement . | . . . . Assault . | . . . . Garrison . | . . . . Intercept . | . . . . Construction Impeded . | . . . . Haulers Reinforced . | . . . . Stealth | -11 -10 -10 -9 --------- Run | Scr Mat Min Mat Distress Signals 1 | . . . 1 Communications Jammed . | . . . . Distress Signals . | . . . . Times Spotted 21 | 1 7 3 10 Peak Tracking Total 8 | 1 2 1 8 Tactical Retreats 4 | . 1 . 3 Traps | -11 -10 -10 -9 ------- Run | Scr Mat Min Mat Traps Triggered . | . . . . Indirectly . | . . . . Trap Hack Attempts . | . . . . Triggered . | . . . . Disarmed . | . . . . Reprogrammed . | . . . . Reused . | . . . . Traps Extracted . | . . . . Installed . | . . . . Triggered . | . . . . Machines | -11 -10 -10 -9 ---------- Run | Scr Mat Min Mat Machines Disabled 1 | . . 1 . Max in Single Turn 1 | . . 1 . Machines Sabotaged . | . . . . Garrisons Compromised . | . . . . Overloaded Fab Kills . | . . . . Fab Network Shutdowns . | . . . . Hacking | -11 -10 -10 -9 --------- Run | Scr Mat Min Mat Machines Accessed 6 | . 4 . 2 Terminals 5 | . 3 . 2 Fabricators . | . . . . Repair Stations . | . . . . Recycling Units 1 | . 1 . . Scanalyzers . | . . . . Garrison Access . | . . . . Total Hacks 19 | . 12 . 7 Successful 14 | . 10 . 4 Failed 5 | . 2 . 3 Catastrophic 1 | . . . 1 Database Lockouts . | . . . . Manual . | . . . . Terminals 18 | . 11 . 7 Fabricators . | . . . . Repair Stations . | . . . . Recycling Units 1 | . 1 . . Scanalyzers . | . . . . Garrison Access . | . . . . Terminal Hacks 13 | . 9 . 4 Record 8 | . 5 . 3 Prototype ID Bank 1 | . 1 . . Branch Access Points 1 | . 1 . . Security Status 1 | . 1 . . Transport Status 1 | . 1 . . Zone Layout 1 | . . . 1 Fabricator Hacks . | . . . . Repair Station Hacks . | . . . . Recycling Unit Hacks 1 | . 1 . . Report Inventory 1 | . 1 . . Scanalyzer . | . . . . Garrison Access Hacks . | . . . . Unauthorized Hacks . | . . . . Terminals . | . . . . Fabricators . | . . . . Repair Stations . | . . . . Recycling Units . | . . . . Scanalyzers . | . . . . Garrison Access . | . . . . Data Cores Recovered . | . . . . Used . | . . . . Hacking Detections 5 | . 3 . 2 Full Trace Events 5 | . 3 . 2 Feedback Events . | . . . . Feedback Blocked . | . . . . Robot Schematics Acquired . | . . . . Robots Built . | . . . . Matter . | . . . . Time . | . . . . Total Robot Build Rating . | . . . . Part Schematics Acquired . | . . . . Parts Built . | . . . . Matter . | . . . . Time . | . . . . Total Part Build Rating . | . . . . Parts Repaired . | . . . . Time . | . . . . Parts Recycled . | . . . . Recycled Matter . | . . . . Retrieved Matter . | . . . . Retrieved Components . | . . . . Parts Scanalyzed . | . . . . Part Schematics Acquired . | . . . . Parts Damaged . | . . . . Bothacking | -11 -10 -10 -9 ------------ Run | Scr Mat Min Mat Used RIF Installer . | . . . . Robots Hacked . | . . . . Non-combat . | . . . . Combat . | . . . . Robot Hacks Applied . | . . . . Relay Couplers Released . | . . . . Robots Rewired . | . . . . Allies Hacked . | . . . . Hacks Repelled . | . . . . Allies | -11 -10 -10 -9 -------- Run | Scr Mat Min Mat Total Allies . | . . . . Largest Group . | . . . . Highest-Rated Group . | . . . . Highest-Rated Ally . | . . . . Total Orders . | . . . . Ally Attacks . | . . . . Total Damage . | . . . . Kills . | . . . . Allies Corrupted . | . . . . Allies Melted . | . . . . Intel | -11 -10 -10 -9 ------- Run | Scr Mat Min Mat Robot Analysis Total . | . . . . Derelict Logs Recovered . | . . . . Drone Launches . | . . . . Drone Recoveries . | . . . . Exploration | -11 -10 -10 -9 ------------- Run | Scr Mat Min Mat Turns Passed 948 | 134 244 393 177 Spaces Moved 838 | 147 217 363 111 Core 50 | 44 . . 6 Treads . | . . . . Legs . | . . . . Wheels 788 | 103 217 363 105 Hover . | . . . . Flight . | . . . . Fastest Speed 50 | 50 80 90 90 Average Speed 89 | 71 81 90 123 Slowest Speed 550 | 80 90 90 550 Overloaded Moves . | . . . . Propulsion Burnouts . | . . . . Robots Hopped . | . . . . Cave-ins Triggered . | . . . . Exploration Rate (%) 27 | 10 30 60 10 Regions Visited 3 Branch Regions 1 Pre-discovered Areas . | . . . . Known Exits Taken 1 | . 1 . . Unknown Exits Taken 2 | 1 . 1 . Scrap Searched . | . . . . Spaces Dug . | . . . . Terrain Destroyed 133 | . 60 62 11 Melee . | . . . . Projectile 24 | . . 13 11 AOE 109 | . 60 49 . Terrain Rammed . | . . . . Walls Destroyed . | . . . . Machines Disabled . | . . . . Actions | -11 -10 -10 -9 --------- Run | Scr Mat Min Mat Total 967 | 171 260 398 138 Wait 14 | . . 6 8 Move 835 | 146 216 362 111 Hop . | . . . . Pick Up 25 | 10 11 4 . Fast Attach . | . . . . Attach 26 | 9 9 3 5 Detach 7 | 2 3 1 1 Swap 1 | . . 1 . Drop 9 | 1 6 2 . Fire 50 | 3 15 19 13 Melee . | . . . . Ram . | . . . . Kick . | . . . . Crush . | . . . . Escape Stasis . | . . . . Rewire . | . . . . Trap . | . . . . Miscellaneous . | . . . . Route ------- -11/Scrapyard -10/Materials (discovered 2 exits: *Min x2) -10/Mines -9/Materials History --------- Turn | Location | Event 2 | -11/Scrapyard | Met Revision 17 74 | -11/Scrapyard | Discovered new exit (range 8) 135 | -11/Scrapyard | Entered Materials 286 | -10/Materials | Identified exit to Mines 303 | -10/Materials | Build established: Mutant 379 | -10/Materials | Entered Mines 387 | -10/Mines | Assembled infested the area 392 | -10/Mines | Assisted by a Guerilla fighting off Assembled 394 | -10/Mines | Met a Derelict bent on vengeance 433 | -10/Mines | A weapon hastily lodged in a ceiling crevice suddenly fell to the ground 738 | -10/Mines | Discovered new exit (range 6) 772 | -10/Mines | Entered Materials 772 | -9/Materials | Evolved 2 slots: Utility x2 921 | -9/Materials | Core integrity fell below 50% 940 | -9/Materials | Core integrity fell below 20% 943 | -9/Materials | Lost 6 parts (1p2n3w) 949 | -9/Materials | Destroyed by G-34 Mercenary with Small Laser Last Messages --------------- [Achievement: Oops] 00899_ Sml. Laser destroyed. 00901_ U-05 Engineer builds a Wall. 00902_ Slug Cannon destroyed. 00905_ K-01 Serf collects debris. 00905_ Ion Engine destroyed. 00909_ Wheel destroyed. 00915_ K-01 Serf collects debris. 00922_ T-07 Excavator destroyed. 00922_ K-01 Serf destroyed. 00930_ U-05 Engineer lays Concrete. 00932_ K-01 Serf collects debris. 00942_ U-05 Engineer lays Concrete. 00945_ K-01 Serf collects debris. 00945_ U-05 Engineer destroyed. 00947_ R-06 Scavenger collects Wheel. 00948_ K-01 Serf collects debris. 00948_ K-01 Serf destroyed. 00949_ U-05 Engineer lays Concrete. [Achievement: First Step to Greatness] Map ----- +----------------------------------------------------+ | ????????????????????? # #??????# | | ????????????????????? # ######## | | ?????????????????????"" + | | ?????????????????????"" ####+######+###### | | ?????????????????????"" ## # ## "" | | ????????????????????? ## # ## """ | | ?????????????????????###### # ## | | ??????????????????????????# # # | | ??????????????????????????# # # | | ??????????????????????????# # # | | ??????????????????????????# # ## ###### | | ??????????????????????????# # ## #????# | | ??????????????????????????################# #????? | | ??????????????????????????????# #??# #????? | | ??????????????????????????????# """ #??# #????? | | ??????????????????????????????# "T" #??# #????? | | ??????????????????????????????# #??# #????? | | ?????????????????#######??????# #??# #????? | | ?????????????????# ######## """ #?## #????? | | ?????????????????# + """ #?## #????? | | ?????????????????# # """ #?#" ##???? | | ?????????????????# T # #### ###### | | ?????????????????# u""" ! ####+######## # | | ?????????????????# """ %= g # | | ?????????????????# """gr g # | | ################## *u g@ g #[ | | =ua *% ########### # | | """ #???############# | | """ #???# #?# | | """ #???# #### | | ?+################# #???# # | | ?????????########## #????????????????? | | ?????????# # #????????????????? | | ?????????# + #####+###+#????????????????? | | ?????????# # #??????????????????????????? | | ?????????# """ # #??????????????????????????? | | ?????????# """"" # #??????????????????????????? | | ?????????# """"" #####??????????????????????????? | | ?????????# """"" #??????????????????????????????? | | ?????????# """ #??????????????????????????????? | | ?????????# #??????????????????????????????? | | ?????????##########??????????????????????????????? | | ?????????????????????????????????????????????????? | | ?????????????????????????????????????????????????? | | ?????????????????????????????????????????????????? | | ?????????????????????????????????????????????????? | | ?????????????????????????????????????????????????? | | | | | | | +----------------------------------------------------+ Best States ------------- Heat Dissipation 35 Energy Generation 10 Energy Capacity 250 Matter Stores 237 Matter Capacity 450 Sight Range 16 Terrain Scan Density 85 Utility Shielding 33 Evasion (%) 50 Item Schematics ----------------- None Robot Schematics ------------------ None Fabricated ------------ Nothing Alien Tech Used ----------------- None Achievements -------------- First Step to Greatness I Survived The Infestation One Hack Too Far Oops Storm Trooper Challenges ------------ None Game ------ Seed MetafieldShieldKatana Manual? 0 Play Time 00:49:09 Cumulative 1.5 hours Start 2021.10.30 @ 15:28:26 End 2021.10.30 @ 16:40:29 Sessions 1 Manual Loads 0 Difficulty Rogue Special Mode None Game No. 1 Rogue 1 Adventurer 0 Explorer 0 Win Type - Total 0 Types 0/0/0/0/0/0/0/0/0 Lore% 1 Gallery% 1 Achievement% 1 Wizard Run 0 Options --------- ASCII 0 Keyboard 0 Movement Arrows Keybinds 0 Fullscreen 1 Font 18/SmallcapsGlow Map View 76x50 Tactical HUD 1 Map Filters NONE Filters NONE Steam 1 RUN: c2e5171b-a883-4719-b9c0-7eea36d2c259